Cogmind - Beta 15 @@@ ROGUE MODE // 2025.10.17 @ 11:50:59 Player: Suslik Result: Smashed by cave-in Performance ------------- Evolutions (0) 0 Regions Visited (3) 600 Robots Destroyed (23) 115 Value Destroyed (727) 727 Prototype IDs (12) 240 Alien Tech Used (0) 0 Bonus (130) 130 TOTAL SCORE: 1812 Bonus ------- Follower Combat Kills 130 Cogmind --------- Core Integrity 0/250 Matter 167/300 Energy 100/100 System Corruption 6% Temperature Cool (0) Movement Rolling (185) Ox7 Location -10/Subcaves Parts ------- > --- POWER (1+1) ------ (None) > --- PROPULSION (2+2) - Light Treads Wheel > --- UTILITY (2+2) ---- Large Storage Unit (+) Tower Shield > --- WEAPON (2+2) ----- Riot Gun (fused) (+) Bore Cannon Hammer > --- INVENTORY (15) --- Light Treads Flight Unit Scrap Suit Heat Sink Medium Storage Unit Medium Matter Pod (0) Subdweller Optics Improved Terrain Scanner Scrap Shield Sensor Drone Bay (20/20) Enhanced Flamer Scrap Shield Fragment (41) Peak State ------------ > --- POWER ------------ Light Ion Engine > --- PROPULSION ------- Wheel Subdweller Monowheel > --- UTILITY ---------- Large Storage Unit Tower Shield > --- WEAPON ----------- Riot Gun Bore Cannon Hammer > --- INVENTORY -------- Light Treads Light Treads Flight Unit Scrap Suit Heat Sink Medium Storage Unit Huge Storage Unit Medium Matter Pod Improved Terrain Scanner Scrap Shield Sensor Drone Bay Multitool Scrap Shield Fragment [Rating: 37] Favorites ----------- Power Ion Engine Engine Ion Engine Propulsion Subdweller Monowheel Treads Light Treads Leg Aluminum Leg Wheel Subdweller Monowheel Utility Huge Storage Unit Device Seismic Detector Storage Huge Storage Unit Protection Light Armor Plating Weapon Hammer Energy Gun Medium Laser Ballistic Gun Subdweller Machine Gun Ballistic Cannon Bore Cannon Impact Weapon Hammer Build | -11 -10 -10 -10 ------- Run | Yrd Mat Min Sub Slots Evolved . | . . . . Power . | . . . . Propulsion . | . . . . Utility . | . . . . Weapon . | . . . . Parts Attached 24 | 1 7 1 15 Power 2 | . 1 . 1 Engine 2 | . 1 . 1 Core . | . . . . Reactor . | . . . . Propulsion 10 | . 2 . 8 Treads 2 | . . . 2 Leg . | . . . . Wheel 8 | . 2 . 6 Hover . | . . . . Flight . | . . . . Utility 6 | 1 3 1 1 Device 2 | 1 . 1 . Storage 2 | . 2 . . Processor . | . . . . Hackware . | . . . . Protection 2 | . 1 . 1 Artifact . | . . . . Weapon 6 | . 1 . 5 Energy Gun 2 | . 1 . 1 Energy Cannon . | . . . . Ballistic Gun 2 | . . . 2 Ballistic Cannon 1 | . . . 1 Launcher . | . . . . Special Weapon . | . . . . Impact Weapon 1 | . . . 1 Slashing Weapon . | . . . . Piercing Weapon . | . . . . Special Melee Weapon . | . . . . Unidentified Prototypes 1 | . . 1 . Parts Lost 5 | . 3 . 2 Power 3 | . 1 . 2 Propulsion . | . . . . Utility 1 | . 1 . . Weapon 1 | . 1 . . Highest Loss Streak 1 | . 1 . 1 To Critical Strikes . | . . . . Average Backups 15 | 6 11 17 16 Power . | 1 1 1 . Propulsion 4 | 4 4 5 4 Utility 7 | . 3 7 8 Weapon 2 | 1 1 2 1 Tool/Special . | . . . . Unused Backups 27 | 6 2 . 19 Power 2 | 1 1 . . Propulsion 7 | 2 . . 5 Utility 10 | 1 . . 9 Weapon 7 | 2 1 . 4 Tool/Special 1 | . . . 1 Average Slot Usage (%) 84 | . 96 99 78 Engine 11 | . 14 14 10 Leg 1 | . 11 . . Wheel 21 | . 16 28 20 Storage 11 | . 14 14 10 Protection 10 | . 8 13 10 Energy Gun 6 | . 14 14 2 Ballistic Gun 9 | . 14 14 7 Ballistic Cannon 3 | . . . 4 Impact Weapon 6 | . . . 9 Peak Build Rating 37 | 8 8 16 37 Average Rating 19 | 6 7 9 24 On Entrance 8 | 6 8 8 10 Naked Turns . | . . . . Heaviest Build 99 | 14 91 91 99 Greatest Support 40 | 20 32 32 40 Greatest Overweight (x) 7 | . 2 2 7 Average Overweight (x) 2 | . 1 2 2 Largest Inventory Capacity 25 | 8 25 25 25 Average Capacity 21 | 8 20 25 20 Most Carried 25 | 8 13 20 25 Average Carried 18 | 6 11 17 19 Final Capacity 25 | 8 25 25 15 Final Carried 20 | 8 13 20 14 Class Distribution -------------------- 70% | Mutant 29% | Scavenger-Mutant Dominant Class ---------------- Mutant | -10/Materials Mutant | -10/Mines Mutant | -10/Subcaves Resources | -11 -10 -10 -10 ----------- Run | Yrd Mat Min Sub Matter Collected 841 | 215 14 227 385 Remotely . | . . . . Salvage Created 816 | 99 212 36 469 Parts 49 | 5 15 3 26 Haulers Intercepted . | . . . . Recyclers Shooed 1 | 1 . . . Parts Field Recycled . | . . . . Retrieved Matter . | . . . . Parts Self-Destructed 9 | . . . 9 Prevented . | . . . . Kills | -11 -10 -10 -10 ------- Run | Yrd Mat Min Sub Combat Hostiles Destroyed 21 | . 7 1 13 Guns 14 | . 6 1 7 Cannons 6 | . . . 6 AOE 1 | . 1 . . Classes Destroyed 5 | 2 2 . 1 Tunneler 1 | 1 . . . Recycler 1 | 1 . . . Swarmer 3 | . 3 . . Grunt 6 | . 4 1 1 Subdweller 12 | . . . 12 Best Kill Streak 4 | 2 4 1 4 Combat Bots Only 4 | . 4 1 4 Max Kills in Single Turn 2 | 1 1 1 2 Gunslinging 1 | . . . 1 Exploded 1 | . 1 . . Melee . | . . . . Uniques/NPCs Destroyed . | . . . . Combat | -11 -10 -10 -10 -------- Run | Yrd Mat Min Sub Hostile Shots Fired 69 | . 35 3 31 Missed 21 | . 9 1 11 Hits 48 | . 26 2 20 Projectile 48 | . 26 2 20 Critical Strikes 1 | . . . 1 Damage Taken 1063 | . 327 25 711 Core 296 | . 87 . 209 Absorbed by Shields . | . . . . Core Remaining (%) 100 | 100 . . . Volleys Fired 79 | 5 30 2 42 Largest 2 | 2 2 2 2 Hottest 98 | 60 70 70 98 Shots Fired 134 | 10 60 4 60 Gun 111 | 10 60 4 37 Cannon 23 | . . . 23 Launcher . | . . . . Special . | . . . . Kinetic 95 | 5 30 2 58 Thermal 17 | . 15 2 . Explosive . | . . . . Electromagnetic 22 | 5 15 . 2 Robot Hit Streak 17 | 1 6 3 17 Robot Miss Streak 4 | 1 4 1 3 Penetration Max . | . . . . Secondary Targets 1 | . . . 1 Max Gunslinging Chain 1 | . . . 1 Shots Hit Robots 72 | 5 25 3 39 Core Hits 36 | 4 11 3 18 Critical Kills 5 | . . . 5 Critical Parts Destroyed 2 | . . . 2 Critical Strikes 11 | . 2 . 9 Burn 2 | . 2 . . Destroy 9 | . . . 9 Melee Attacks 125 | . . . 125 Impact 125 | . . . 125 Slashing . | . . . . Piercing . | . . . . Sneak Attacks . | . . . . Combat Hostiles . | . . . . Follow-up Attacks . | . . . . Damage Inflicted 1194 | 39 344 32 779 Guns 763 | 39 257 32 435 Cannons 344 | . . . 344 Explosions 40 | . 40 . . Melee . | . . . . Ramming 47 | . 47 . . Kinetic 922 | 39 96 8 779 Thermal 125 | . 101 24 . Explosive . | . . . . Electromagnetic 100 | . 100 . . Impact . | . . . . Slashing . | . . . . Piercing . | . . . . Highest Corruption 4 | . 4 4 4 Average Corruption 3 | . 3 4 4 Corruption Purged . | . . . . Corruption Blocked . | . . . . Effects 81 | . 5 18 58 Message Errors 20 | . 2 5 13 Matter Fused 20 | . 2 3 15 Heat Flow Errors 13 | . 1 4 8 Energy Discharges 8 | . . 3 5 Parts Fused 2 | . . . 2 Data Loss (minor) 8 | . . 2 6 Data Loss (major) 6 | . . . 6 Misfires 3 | . . . 3 Alerts 1 | . . 1 . Overload Shots . | . . . . Overflow Damage 17 | . 17 . . Projectiles . | . . . . Explosions . | . . . . Melee 17 | . 17 . . Knockbacks 4 | . 1 . 3 Impact 1 | . 1 . . Kinetic 3 | . . . 3 Secondary . | . . . . Self-Inflicted Damage 23 | . 23 . . Shots . | . . . . Rammed 1 | . 1 . . Targets Rammed 1 | . 1 . . Kicked . | . . . . Crushed . | . . . . Highest Temperature 253 | 40 253 244 225 Average Temperature 62 | 16 51 74 96 Received Heat Transfer 135 | . 48 15 72 Siege Activations . | . . . . Martial Activations . | . . . . Shielding Activations . | . . . . Robots Disrupted . | . . . . Combat Hostiles . | . . . . Robots Corrupted . | . . . . Combat Hostiles . | . . . . Parts Fried . | . . . . Impact Corruptions 1 | . 1 . . Robots Melted . | . . . . Combat Hostiles . | . . . . Parts Melted 1 | . . . 1 Heat Transferred 457 | . 383 74 . Parts Sabotaged . | . . . . Parts Stolen . | . . . . Parts Stripped . | . . . . Power Chain Reactions 1 | . 1 . . Alert | -11 -10 -10 -10 ------- Run | Yrd Mat Min Sub Maximum Alert Level . | . . . . Low Security (%) 100 | 100 100 100 . Level 1 . | . . . . Level 2 . | . . . . Level 3 . | . . . . Level 4 . | . . . . Level 5 . | . . . . High Security . | . . . . Max Security . | . . . . Peak Influence 131 | 10 131 52 . Initial . | . . . . Average 22 | 1 47 7 . Influence Increases 371 | 10 201 107 53 Destroy 0b10 Robot/C 260 | . 140 80 40 Destroy 0b10 Robot/NC 10 | 10 . . . Destroy Leader 60 | . 30 20 10 Allied During Kill 10 | . . 7 3 Successful Hack 10 | . 10 . . Destroy Structure 6 | . 6 . . Lose Combat Pursuer 15 | . 15 . . Influence Decreases 371 | 10 201 107 53 Time Decay 321 | 10 171 107 33 Lost Part 30 | . 30 . . Lost Ally 20 | . . . 20 Squads Dispatched 2 | . 2 . . Investigation 1 | . 1 . . Extermination . | . . . . Reinforcement 1 | . 1 . . Assault . | . . . . Garrison . | . . . . Intercept . | . . . . Searches Triggered . | . . . . Construction Impeded . | . . . . Haulers Reinforced . | . . . . Active Scanning Responses . | . . . . Cargo Convoy Interrupts . | . . . . Stealth | -11 -10 -10 -10 --------- Run | Yrd Mat Min Sub Distress Signals 1 | . 1 . . Communications Jammed . | . . . . Distress Signals . | . . . . Times Spotted 37 | . 14 4 19 Peak Tracking Total 6 | . 4 2 6 Tactical Retreats 1 | . 1 . . Traps | -11 -10 -10 -10 ------- Run | Yrd Mat Min Sub Traps Triggered 5 | . 4 . 1 Indirectly . | . . . . Trap Hack Attempts . | . . . . Triggered . | . . . . Disarmed . | . . . . Reprogrammed . | . . . . Reused . | . . . . Traps Extracted . | . . . . Installed . | . . . . Triggered . | . . . . Machines | -11 -10 -10 -10 ---------- Run | Yrd Mat Min Sub Machines Disabled 1 | . . . 1 Max in Single Turn 1 | . . . 1 Machines Repaired . | . . . . Machines Dismantled . | . . . . Machines Sabotaged . | . . . . Overloaded Fab Kills . | . . . . Hacking | -11 -10 -10 -10 --------- Run | Yrd Mat Min Sub Machines Accessed 5 | . 2 1 2 Terminals 2 | . 2 . . Fabricators . | . . . . Repair Stations . | . . . . Recycling Units . | . . . . Scanalyzers . | . . . . Garrison Access . | . . . . Total Hacks 19 | . 5 1 13 Successful 17 | . 3 1 13 Failed 2 | . 2 . . Catastrophic . | . . . . Database Lockouts . | . . . . Manual 2 | . 2 . . Terminals 5 | . 5 . . Fabricators . | . . . . Repair Stations . | . . . . Recycling Units . | . . . . Scanalyzers . | . . . . Garrison Access . | . . . . Terminal Hacks 16 | . 2 1 13 Record 13 | . 1 . 12 Open Door 1 | . . 1 . Terminal Index 1 | . 1 . . Proto ID Catalog 1 | . . . 1 Fabricator Hacks . | . . . . Repair Station Hacks . | . . . . Recycling Unit Hacks . | . . . . Scanalyzer . | . . . . Garrison Access Hacks . | . . . . Unauthorized Hacks 1 | . 1 . . Terminals 1 | . 1 . . Botnet 1 | . 1 . . Fabricators . | . . . . Repair Stations . | . . . . Recycling Units . | . . . . Scanalyzers . | . . . . Garrison Access . | . . . . Data Cores Recovered . | . . . . Used . | . . . . Hacking Detections 2 | . 2 . . Full Trace Events . | . . . . Feedback Events . | . . . . Feedback Blocked . | . . . . Robot Schematics Acquired . | . . . . Robots Built . | . . . . Authchips . | . . . . Time . | . . . . Total Robot Build Rating . | . . . . Part Schematics Acquired . | . . . . Parts Built . | . . . . Authchips . | . . . . Time . | . . . . Total Part Build Rating . | . . . . Parts Repaired . | . . . . Time . | . . . . Parts Recycled . | . . . . Recycled Matter . | . . . . Retrieved Matter . | . . . . Retrieved Components . | . . . . Parts Scanalyzed . | . . . . Part Schematics Acquired . | . . . . Parts Damaged . | . . . . Bothacking | -11 -10 -10 -10 ------------ Run | Yrd Mat Min Sub Used RIF Installer . | . . . . Robots Hacked . | . . . . Non-combat . | . . . . Combat . | . . . . Robot Hacks Applied . | . . . . Relay Couplers Released . | . . . . Fabnet Peak Effective % . | . . . . Robots Rewired . | . . . . Allies Hacked . | . . . . Hacks Repelled . | . . . . Allies | -11 -10 -10 -10 -------- Run | Yrd Mat Min Sub Total Allies 5 | . . 5 . Largest Group 3 | . . 3 3 Highest-Rated Group 52 | . . 52 52 Highest-Rated Ally 31 | . . 31 31 Total Orders . | . . . . Ally Attacks 38 | . . 18 20 Total Damage 400 | . . 162 238 Kills 4 | . . 3 1 Allies Corrupted . | . . . . Allies Melted . | . . . . Intel | -11 -10 -10 -10 ------- Run | Yrd Mat Min Sub Active Infowar (turns) 91 | 15 76 . . Seismic 91 | 15 76 . . Robot Analysis Total . | . . . . Derelict Logs Recovered 3 | . . 2 1 Drone Launches . | . . . . Drone Recoveries . | . . . . Exploration | -11 -10 -10 -10 ------------- Run | Yrd Mat Min Sub Turns Passed 4029 | 42 443 700 2844 Spaces Moved 2519 | 21 238 504 1756 Core . | . . . . Treads . | . . . . Legs 77 | 21 56 . . Wheels 2442 | . 182 504 1756 Hover . | . . . . Flight . | . . . . Fastest Speed 95 | 120 120 130 95 Average Speed 132 | 120 141 130 131 Slowest Speed 190 | 120 190 130 185 Overloaded Moves . | . . . . Propulsion Burnouts . | . . . . Robots Hopped . | . . . . Potential Cave-ins . | . . . . Cave-ins Triggered 1 | . . . 1 Exploration Rate (%) 54 | 3 43 97 76 Regions Visited 3 Branch Regions 2 Pre-discovered Areas 1 | . . . 1 Known Exits Taken . | . . . . Unknown Exits Taken 3 | 1 1 1 . Scrap Searched 6 | . . 3 3 Spaces Dug 46 | . . . 46 Terrain Destroyed 65 | . 6 . 59 Melee 44 | . . . 44 Projectile 15 | . . . 15 AOE 6 | . 6 . . Terrain Rammed . | . . . . Walls Destroyed . | . . . . Machines Disabled . | . . . . Actions | -11 -10 -10 -10 --------- Run | Yrd Mat Min Sub Total 2887 | 28 288 546 2025 Wait 49 | . 6 31 12 Move 2516 | 20 237 503 1756 Hop . | . . . . Pick Up 40 | 2 6 5 27 Fast Attach 11 | 1 1 1 8 Attach 7 | . 2 1 4 Detach 7 | . . 2 5 Swap 9 | . 4 . 5 Drop 42 | . 1 . 41 Fire 79 | 5 30 2 42 Melee 125 | . . . 125 Ram 1 | . 1 . . Kick . | . . . . Crush . | . . . . Escape Stasis . | . . . . Rewire 1 | . . 1 . Trap . | . . . . Miscellaneous . | . . . . Route ------- -11/Scrapyard -10/Materials -10/Mines (discovered 3 exits: [*Mat x2] / *Sub) -10/Subcaves (discovered 1 exit: [Scr]) History --------- Turn | Location | Event 1 | -11/Scrapyard | Discovered new exit (range 3) 43 | -11/Scrapyard | Entered Materials 306 | -10/Materials | Build established: Mutant 466 | -10/Materials | Discovered new exit (range 9) 486 | -10/Materials | Entered Mines 503 | -10/Mines | Assisted by bots powering up and referring to "LRC-V3" 525 | -10/Mines | Learned Materials emergency access door positions 556 | -10/Mines | Learned 4 Materials zone layouts 650 | -10/Mines | Found the Drone Emporium 658 | -10/Mines | Found Prototype Device 658 | -10/Mines | Identified Sensor Drone Bay 671 | -10/Mines | Discovered new exit (range 13) 762 | -10/Mines | Discovered new exit (range 10) 809 | -10/Mines | Found a Scrap Suit stashed away for nefarious purposes 812 | -10/Mines | Found Scrap Suit 1164 | -10/Mines | Discovered new exit (range 12) 1186 | -10/Mines | Entered Subcaves 1186 | -10/Subcaves | Accompanied by 3 allies 1187 | -10/Subcaves | Approached by a straggling Scientist 1191 | -10/Subcaves | Led the pair of lost Derelicts to an unsafe place 1214 | -10/Subcaves | Learned location of Zion (-6) 1214 | -10/Subcaves | Met a Zionite searching for "candidates" 1225 | -10/Subcaves | Ambushed by Subdwellers from Twisted Machinery 1336 | -10/Subcaves | Ambushed by swarm of Subdwellers 1338 | -10/Subcaves | Lost 3 allies 1361 | -10/Subcaves | Core integrity fell below 50% 1386 | -10/Subcaves | Shifting Twisted Machinery released Flamer 1386 | -10/Subcaves | Lost 4 allies 1410 | -10/Subcaves | Shifting Twisted Machinery released Battle Rifle 1442 | -10/Subcaves | A swath of the cavern ceiling suddenly collapsed 1449 | -10/Subcaves | Scientist uncovered a shortcut to Scraptown 1768 | -10/Subcaves | Disturbed a concealed Subdweller 2415 | -10/Subcaves | Core integrity fell below 20% 2491 | -10/Subcaves | Visited Clippyterm 2495 | -10/Subcaves | Learned Factory stockpile data 2627 | -10/Subcaves | Visited 4L-MR0's lab 2640 | -10/Subcaves | Found Tower Shield 2708 | -10/Subcaves | Attached Tower Shield, gained temporary slots: Power, Propulsion x2, Utility x2, Weapon x2 2866 | -10/Subcaves | Build established: Scavenger-Mutant 3526 | -10/Subcaves | A swath of the cavern ceiling suddenly collapsed 3683 | -10/Subcaves | Shifting Twisted Machinery released Sub. Monowheel 3694 | -10/Subcaves | Shifting Twisted Machinery released Mak. Power Source 3710 | -10/Subcaves | Learned 4 Materials zone layouts 3758 | -10/Subcaves | Shifting Twisted Machinery released Sub. Optics 3791 | -10/Subcaves | Build established: Mutant 4031 | -10/Subcaves | Crushed by falling debris 4031 | -10/Subcaves | Smashed by cave-in Last Messages --------------- 03767_ Acquired Sub. Optics. 03768_ Dropped Multitool. 03769_ Acquired Multitool. 03770_ Dropped Multitool. 03772_ Acquired Imp. Terrain Scanner. 03804_ System corrupted: Heat flow error (+258). 03825_ System corrupted: Component data lost. 03848_ System corrupted: Matter fused (-5). 03871_ Sub. Monowheel shoots sparks and powers down. 03872_ Dropped Broken Sub. Monowheel. 03887_ Acquired 1 matter. 03970_ System corrupted: Substantial component data lost. 04010_ Subatomizers dissect the Broken Sub. Monowheel. 04031_ The unstable cave ceiling collapses. 04031_ Crushed by falling debris. 04031_ Lgt. Ion Engine destroyed. 04031_ System corrupted by crushing effect (+2). Map ----- +----------------------------------------------------+ | ?#"# ###### ### #??????? | | ?##### ##????## #?## #"#?????? | | ?????### #?????## ##??# ####?????? | | ???????## #?????#" ###???# ##????????? | | ????????###"#????### ## ##???#"#"#????????? | | ???????????##????### ### ##??##?##????????? | | ?????????????????# #### ##??????????????? | | ?????????????????# ## #??????????????? | | ???????????####?## ## ## #??????????????? | | #?????????## #### ## ##??????????????? | | #????????# ## ## ###???????????????? | | ????????# = ###?????????????????? | | " ####????# #??????????????????? | | "" ###### ##?????????????????? | | "" """ ## #?????????????????? | | "" " ## ## #???###????##?????? | | "" ### #??##"#??##"#?????? | | "" "" " ### ##### #?## ##### #??????? | | """"" " #### #### #?# #??????? | | """ ####?# ## #?## #??????? | | """ ######??##### ##??# #??????? | | "" ## ##### ##### ##??## ### #??????? | | "## ## ######### #### #??????? | | ??# #?# #?## #?###"#?????? | | ?# ## ## ### ### ##????##?????? | | # ####### #@# #????????????? | | #####???## #### #????????????? | | ???????## ## ##?## ######????????????? | | ???????# ######?## #####?????????????? | | ???????# ###??????# #?????????????? | | ???????# ## ##???????# ##### #?????????????? | | ????? #?# ##??????# #???## ####??????????? | | ?? #??# #??????# # #????# ## #??????????? | | ? #####??## ###????##### #????# #??????????? | | ??????????# ##???????# ###??# ####???????? | | ??????????### ##?###?## #### #???????? | | ??????????## ### ### ## #???????? | | ?????????## ###???????? | | ????????## # ##????????? | | ???????## #### ####" "" #????????? | | ???????# ##??## #??####"" """ ##???????? | | ???????#"##???## #????##" " ## ##??????? | | ???????## ##???### #????### ### #??????? | | ????????## ##????## #??????## #?## #??????? | | ?????????# ##????? ##??????## ##### #??????? | | ?????????### ###### ##??????#" ##" ##??????? | | ???????????##=& #??????#"" ## ####???????? | | ????????????#&& # ###??????##"" #"##??????????? | | ?## #???????# ##???????????##" ###????????????? | | ## ???????## #???????????## #######????????? | +----------------------------------------------------+ Best States ------------- Heat Dissipation 25 Energy Generation 10 Energy Capacity 250 Matter Stores 300 Matter Capacity 300 Sight Range 16 Terrain Scan Density 10 Armor Coverage 2000 Evasion (%) 55 Item Schematics ----------------- None Robot Schematics ------------------ None Fabricated ------------ Nothing Repaired ---------- Nothing Alien Tech Used ----------------- None Achievements -------------- None Challenges ------------ None Game ------ Seed DeepAlertDevice Manual? 0 Play Time 00:34:20 Cumulative 226.8 hours Start 2025.10.17 @ 11:17:00 End 2025.10.17 @ 11:50:59 Sessions 1 Manual Loads 0 Difficulty Rogue Special Mode None Game No. 198 Rogue 188 Adventurer 10 Explorer 0 Win Type - Total 4 Types 3/0/0/1/0/0/0/0/0/0 Lore% 35 Gallery% 60 Achievement% 66 Wizard Run 0 Options --------- Layout 1 ASCII 0 Keyboard 1 Movement Numpad Keybinds 0 Fullscreen 1 Font 32/SmallcapsGlow Map View 50x40 Zoom Use 0% Tactical HUD 1 Map Filters NONE Filters NONE Steam 1 RUN: 21d3e4ba-af84-414a-80f4-ddb997b2e748